Workbook

Sheet Summary Sheet
A1: Project | E1: [Project Name] | S1: Progress Payment Application (PPA) | AP1: Update this part before anything else
A2: Phase | E2: [Project Phase]
A3: Client | E3: [Client] | S3: Proj. Mngr. | W3: [Project Mngr.] | AB3: Date | AF3: 2016-01-01
A4: Client's Repres. | E4: [Client's Representative] | AB4: PPC No. | AF4: 8
A5: Contractor | E5: [Contractor] | S5: Ref. No. | W5: XYZ-123-PPC-009-00 - December
A6: Sub-Contractor | E6: [Sub-Contractor]
A7: 1. Contract Details
A9: Contract Title | E9: [Contract Title]
A10: Contract No. | E10: [Contract Number] | S10: Contr. Sum | W10: 7,500,000.00
A11: Contract Period | E11: [Contract Duration] | S11: Adjusted Sum
A12: Contract Start | E12: 2015-05-01 | S12: Advance Payment | W12: 750,000.00
A13: Contract End | E13: 2015-04-30 | S13: Repaym. Period | W13: month | AB13: 6
A14: Duration (month) | E14: 12 | S14: Retention (%) | W14: 5%
A15: Contr. Currency | E15: USD | S15: Performance (%) | W15: 5%
A16: 2. Summary | W16: Amount Certified (USD) (refer attached detail)
A18: A) | C18: Preliminaries | W18: ='A-Preliminaries'!AG32 -> 91,353.00 | AH18: =E15 -> USD | AP18: Nothing to fill here, everything updates automatically
A19: B) | C19: Work Done | W19: ='B-Work Done'!AG111 -> 5,633,797.50 | AH19: =AH18 -> USD
A20: C) | C20: Variation works (+/-) | W20: ='C-Variation'!AG26 -> 3,567.00 | AH20: =AH19 -> USD
A22: D) | C22: Total Work Done | S22: A+B+C | W22: =SUM(W18:AG20) -> 5,728,717.50 | AH22: =AH19 -> USD
C23: 1) | E23: Less Adv. Payment Amortization | W23: ='D1-Advance Payment'!AG26 -> -750,000.00 | AH23: =AH22 -> USD
C24: 2) | E24: Less Retention | W24: =ROUND(W22*W14,2)*-1 -> -286,435.88 | AH24: =AH23 -> USD
C25: 3) | E25: Less Performance | W25: =ROUND(W22*W15,2)*-1 -> -286,435.88 | AH25: USD
C26: 4) | E26: Less Previous Certified Amount | W26: =VLOOKUP(AF4-1,'D4-Previous Cert.'!A10:AJ24,31,FALSE)*-1 -> -1,530,000.00 | AH26: USD
C27: 5) | E27: Less Backcharges | W27: ='D5-Backcharges'!AE25 -> -37,500.00 | AH27: USD
C28: 6) | E28: Plus Material at Site | W28: ='D6-Material at Site'!AE25 -> 227,500.00 | AH28: =AH27 -> USD
A29: E) | C29: Payable Amount this Month | S29: D+1+2+3+4+5+6 | W29: =SUM(W22:AG28) -> 3,065,845.74 | AH29: =AH27 -> USD
A47: ="All amounts in "&E15&"." -> All amounts in USD.

Sheet A-Preliminaries
A1: Project | E1: ='Summary Sheet'!E1 -> [Project Name] | S1: ='Summary Sheet'!S1:AJ2 -> Progress Payment Application (PPA) | AP1: Updates Automatically from Summary Sheet
A2: Phase | E2: ='Summary Sheet'!E2 -> [Project Phase]
A3: Client | E3: ='Summary Sheet'!E3 -> [Client] | S3: Proj. Mngr. | W3: ='Summary Sheet'!W3 -> [Project Mngr.] | AB3: Month | AF3: ='Summary Sheet'!AF3 -> 2016-01-01
A4: Client's Repres. | E4: ='Summary Sheet'!E4 -> [Client's Representative] | AB4: PPC No. | AF4: ='Summary Sheet'!AF4 -> 8
A5: Contractor | E5: ='Summary Sheet'!E5 -> [Contractor] | S5: Ref. No. | W5: ='Summary Sheet'!W5 -> XYZ-123-PPC-009-00 - December
A6: Sub-Contractor | E6: ='Summary Sheet'!E6 -> [Sub-Contractor]
A7: A) Preliminaries Summary
A9: Item | C9: Description | M9: QTY | P9: UOM | R9: Rate | U9: Amount | Y9: Contract Provision
Y10: Initial | AC10: Recurring | AG10: Ending
A11: 01 | C11: Mobilization | M11: 1 | P11: item | R11: 12,345.00 | U11: =M11*R11 -> 12,345.00 | Y11: =U11 -> 12,345.00 | AP11: Update this part when preparing first payment claim
A12: 02 | C12: Safety … | M12: ='Summary Sheet'!E14 -> 12 | P12: item | R12: 9,876.00 | U12: =M12*R12 -> 118,512.00 | AC12: =U12 -> 118,512.00
A13: 03 | C13: Demobilization | M13: 1 | P13: item | R13: 67,584.00 | U13: =M13*R13 -> 67,584.00 | AG13: =U13 -> 67,584.00
A26: Total: | U26: =SUM(U11:X25) -> 198,441.00 | Y26: =SUM(Y11:AB25) -> 12,345.00 | AC26: =SUM(AC11:AF25) -> 118,512.00 | AG26: =SUM(AG11:AJ25) -> 67,584.00
Z29: Initial | AG29: =Y26 -> 12,345.00
Z30: Recurring | AD30: =IF('Summary Sheet'!AF4<'Summary Sheet'!E14,'Summary Sheet'!AF4/'Summary Sheet'!E14,100%) -> 66.67% | AG30: =AC26*AD30 -> 79,008.00
Z31: Ending | AG31: =IF('Summary Sheet'!AB13='Summary Sheet'!AF4,AG26,0) -> 0.00
Z32: Total Preliminaries | AG32: =SUM(AG29:AJ31) -> 91,353.00
A49: ="All amounts in "&'Summary Sheet'!$E$15&"." -> All amounts in USD.

Sheet B-Work Done
A1: Project | E1: ='Summary Sheet'!E1 -> [Project Name] | S1: ='Summary Sheet'!S1:AJ2 -> Progress Payment Application (PPA) | AP1: Updates Automatically from Summary Sheet
A2: Phase | E2: ='Summary Sheet'!E2 -> [Project Phase]
A3: Client | E3: ='Summary Sheet'!E3 -> [Client] | S3: Proj. Mngr. | W3: ='Summary Sheet'!W3 -> [Project Mngr.] | AB3: Month | AF3: ='Summary Sheet'!AF3 -> 2016-01-01
A4: Client's Repres. | E4: ='Summary Sheet'!E4 -> [Client's Representative] | AB4: PPC No. | AF4: ='Summary Sheet'!AF4 -> 8
A5: Contractor | E5: ='Summary Sheet'!E5 -> [Contractor] | S5: Ref. No. | W5: ='Summary Sheet'!W5 -> XYZ-123-PPC-009-00 - December
A6: Sub-Contractor | E6: ='Summary Sheet'!E6 -> [Sub-Contractor]
A7: B) Work Done
A9: Item | C9: Description | K9: BOQ | S9: Current Month | Y9: Previous Month(s) | AE9: Total Work Done
K10: QTY | N10: UOM | P10: Rate | S10: QTY | U10: Amount | Y10: QTY | AA10: Amount | AE10: QTY | AG10: Amount
A11: 01 | C11: ABC | K11: 12,000 | N11: m3 | P11: 118.00 | S11: 3,400 | U11: =S11*P11 -> 401,200.00 | Y11: 3,600 | AA11: =Y11*P11 -> 424,800.00 | AE11: =S11+Y11 -> 7,000 | AG11: =AE11*P11 -> 826,000.00 | AP11: Update this part every month.
A12: 02 | C12: DEF | K12: 260 | N12: ton | P12: 1,110.00 | S12: 15 | U12: =S12*P12 -> 16,650.00 | Y12: 112 | AA12: =Y12*P12 -> 124,320.00 | AE12: =S12+Y12 -> 127 | AG12: =AE12*P12 -> 140,970.00
A13: 03 | C13: GHI | K13: 120,000 | N13: m2 | P13: 354.50 | S13: 8,971 | U13: =S13*P13 -> 3,180,219.50 | Y13: 0 | AA13: =Y13*P13 -> 0.00 | AE13: =S13+Y13 -> 8,971 | AG13: =AE13*P13 -> 3,180,219.50
A14: 04 | C14: JKL | K14: 120,000 | N14: m2 | P14: 170.60 | S14: 1,200 | U14: 204,720.00 | Y14: 0 | AA14: 0.00 | AE14: 1,200 | AG14: 204,720.00
A15: 05 | C15: MNO | K15: 117 | N15: pcs. | P15: 384.00 | S15: 57 | U15: 21,888.00 | Y15: 0 | AA15: 0.00 | AE15: 57 | AG15: 21,888.00
A16: 06 | C16: PQR | K16: 2 | N16: set | P16: 380,000.00 | S16: 0 | U16: 0.00 | Y16: 0 | AA16: 0.00 | AE16: 0 | AG16: 0.00
A17: 07 | C17: STU | K17: 36,000 | N17: m | P17: 70.00 | S17: 17,000 | U17: 1,190,000.00 | Y17: 1,000 | AA17: 70,000.00 | AE17: 18,000 | AG17: 1,260,000.00
A18: 08 | U18: 0.00 | AA18: 0.00 | AE18: 0 | AG18: 0.00
A19: 09 | U19: 0.00 | AA19: 0.00 | AE19: 0 | AG19: 0.00
A20: 10 | U20: 0.00 | AA20: 0.00 | AE20: 0 | AG20: 0.00
A21: 11 | U21: 0.00 | AA21: 0.00 | AE21: 0 | AG21: 0.00
A22: 12 | U22: 0.00 | AA22: 0.00 | AE22: 0 | AG22: 0.00
A23: 13 | U23: 0.00 | AA23: 0.00 | AE23: 0 | AG23: 0.00
A24: 14 | U24: 0.00 | AA24: 0.00 | AE24: 0 | AG24: 0.00
A25: 15 | U25: 0.00 | AA25: 0.00 | AE25: 0 | AG25: 0.00
A26: 16 | U26: 0.00 | AA26: 0.00 | AE26: 0 | AG26: 0.00
A27: 17 | U27: 0.00 | AA27: 0.00 | AE27: 0 | AG27: 0.00
A28: 18 | U28: 0.00 | AA28: 0.00 | AE28: 0 | AG28: 0.00
A29: 19 | U29: 0.00 | AA29: 0.00 | AE29: 0 | AG29: 0.00
A30: 20 | U30: 0.00 | AA30: 0.00 | AE30: 0 | AG30: 0.00
A31: 21 | U31: 0.00 | AA31: 0.00 | AE31: 0 | AG31: 0.00
A32: 22 | U32: 0.00 | AA32: 0.00 | AE32: 0 | AG32: 0.00
A33: 23 | U33: 0.00 | AA33: 0.00 | AE33: 0 | AG33: 0.00
A34: 24 | U34: 0.00 | AA34: 0.00 | AE34: 0 | AG34: 0.00
A35: 25 | U35: 0.00 | AA35: 0.00 | AE35: 0 | AG35: 0.00
A36: 26 | U36: =S36*P36 -> 0.00 | AA36: =Y36*P36 -> 0.00 | AE36: =S36+Y36 -> 0 | AG36: =AE36*P36 -> 0.00
A37: 27 | U37: 0.00 | AA37: 0.00 | AE37: 0 | AG37: 0.00
A38: 28 | U38: 0.00 | AA38: 0.00 | AE38: 0 | AG38: 0.00
A39: 29 | U39: 0.00 | AA39: 0.00 | AE39: 0 | AG39: 0.00
A40: 30 | U40: 0.00 | AA40: 0.00 | AE40: 0 | AG40: 0.00
A41: 31 | U41: 0.00 | AA41: 0.00 | AE41: 0 | AG41: 0.00
A42: 32 | U42: 0.00 | AA42: 0.00 | AE42: 0 | AG42: 0.00
A43: 33 | U43: 0.00 | AA43: 0.00 | AE43: 0 | AG43: 0.00
A44: 34 | U44: 0.00 | AA44: 0.00 | AE44: 0 | AG44: 0.00
A45: 35 | U45: 0.00 | AA45: 0.00 | AE45: 0 | AG45: 0.00
A46: 36 | U46: 0.00 | AA46: 0.00 | AE46: 0 | AG46: 0.00
A47: 37 | U47: 0.00 | AA47: 0.00 | AE47: 0 | AG47: 0.00
A48: 38 | U48: 0.00 | AA48: 0.00 | AE48: 0 | AG48: 0.00
A49: 39 | U49: 0.00 | AA49: 0.00 | AE49: 0 | AG49: 0.00
A50: 40 | U50: 0.00 | AA50: 0.00 | AE50: 0 | AG50: 0.00
A51: 41 | U51: 0.00 | AA51: 0.00 | AE51: 0 | AG51: 0.00
A52: 42 | U52: 0.00 | AA52: 0.00 | AE52: 0 | AG52: 0.00
A53: 43 | U53: 0.00 | AA53: 0.00 | AE53: 0 | AG53: 0.00
A54: 44 | U54: 0.00 | AA54: 0.00 | AE54: 0 | AG54: 0.00
A55: 45 | U55: 0.00 | AA55: 0.00 | AE55: 0 | AG55: 0.00
A56: 46 | U56: 0.00 | AA56: 0.00 | AE56: 0 | AG56: 0.00
A57: 47 | U57: 0.00 | AA57: 0.00 | AE57: 0 | AG57: 0.00
A58: 48 | U58: =S58*P58 -> 0.00 | AA58: =Y58*P58 -> 0.00 | AE58: =S58+Y58 -> 0 | AG58: =AE58*P58 -> 0.00
A59: 49 | U59: 0.00 | AA59: 0.00 | AE59: 0 | AG59: 0.00
A60: 50 | U60: 0.00 | AA60: 0.00 | AE60: 0 | AG60: 0.00
A61: 51 | U61: 0.00 | AA61: 0.00 | AE61: 0 | AG61: 0.00
A62: 52 | U62: 0.00 | AA62: 0.00 | AE62: 0 | AG62: 0.00
A63: 53 | U63: 0.00 | AA63: 0.00 | AE63: 0 | AG63: 0.00
A64: 54 | U64: 0.00 | AA64: 0.00 | AE64: 0 | AG64: 0.00
A65: 55 | U65: 0.00 | AA65: 0.00 | AE65: 0 | AG65: 0.00
A66: 56 | U66: 0.00 | AA66: 0.00 | AE66: 0 | AG66: 0.00
A67: 57 | U67: 0.00 | AA67: 0.00 | AE67: 0 | AG67: 0.00
A68: 58 | U68: 0.00 | AA68: 0.00 | AE68: 0 | AG68: 0.00
A69: 59 | U69: 0.00 | AA69: 0.00 | AE69: 0 | AG69: 0.00
A70: 60 | U70: 0.00 | AA70: 0.00 | AE70: 0 | AG70: 0.00
A71: 61 | U71: 0.00 | AA71: 0.00 | AE71: 0 | AG71: 0.00
A72: 62 | U72: 0.00 | AA72: 0.00 | AE72: 0 | AG72: 0.00
A73: 63 | U73: 0.00 | AA73: 0.00 | AE73: 0 | AG73: 0.00
A74: 64 | U74: 0.00 | AA74: 0.00 | AE74: 0 | AG74: 0.00
A75: 65 | U75: 0.00 | AA75: 0.00 | AE75: 0 | AG75: 0.00
A76: 66 | U76: 0.00 | AA76: 0.00 | AE76: 0 | AG76: 0.00
A77: 67 | U77: 0.00 | AA77: 0.00 | AE77: 0 | AG77: 0.00
A78: 68 | U78: 0.00 | AA78: 0.00 | AE78: 0 | AG78: 0.00
A79: 69 | U79: 0.00 | AA79: 0.00 | AE79: 0 | AG79: 0.00
A80: 70 | U80: 0.00 | AA80: 0.00 | AE80: 0 | AG80: 0.00
A81: 71 | U81: 0.00 | AA81: 0.00 | AE81: 0 | AG81: 0.00
A82: 72 | U82: 0.00 | AA82: 0.00 | AE82: 0 | AG82: 0.00
A83: 73 | U83: 0.00 | AA83: 0.00 | AE83: 0 | AG83: 0.00
A84: 74 | U84: 0.00 | AA84: 0.00 | AE84: 0 | AG84: 0.00
A85: 75 | U85: 0.00 | AA85: 0.00 | AE85: 0 | AG85: 0.00
A86: 76 | U86: 0.00 | AA86: 0.00 | AE86: 0 | AG86: 0.00
A87: 77 | U87: 0.00 | AA87: 0.00 | AE87: 0 | AG87: 0.00
A88: 78 | U88: 0.00 | AA88: 0.00 | AE88: 0 | AG88: 0.00
A89: 79 | U89: 0.00 | AA89: 0.00 | AE89: 0 | AG89: 0.00
A90: 80 | U90: =S90*P90 -> 0.00 | AA90: =Y90*P90 -> 0.00 | AE90: =S90+Y90 -> 0 | AG90: =AE90*P90 -> 0.00
A91: 81 | U91: 0.00 | AA91: 0.00 | AE91: 0 | AG91: 0.00
A92: 82 | U92: 0.00 | AA92: 0.00 | AE92: 0 | AG92: 0.00
A93: 83 | U93: 0.00 | AA93: 0.00 | AE93: 0 | AG93: 0.00
A94: 84 | U94: 0.00 | AA94: 0.00 | AE94: 0 | AG94: 0.00
A95: 85 | U95: 0.00 | AA95: 0.00 | AE95: 0 | AG95: 0.00
A96: 86 | U96: 0.00 | AA96: 0.00 | AE96: 0 | AG96: 0.00
A97: 87 | U97: 0.00 | AA97: 0.00 | AE97: 0 | AG97: 0.00
A98: 88 | U98: 0.00 | AA98: 0.00 | AE98: 0 | AG98: 0.00
A99: 89 | U99: 0.00 | AA99: 0.00 | AE99: 0 | AG99: 0.00
A100: 90 | U100: 0.00 | AA100: 0.00 | AE100: 0 | AG100: 0.00
A101: 91 | U101: 0.00 | AA101: 0.00 | AE101: 0 | AG101: 0.00
A102: 92 | U102: 0.00 | AA102: 0.00 | AE102: 0 | AG102: 0.00
A103: 93 | U103: 0.00 | AA103: 0.00 | AE103: 0 | AG103: 0.00
A104: 94 | U104: 0.00 | AA104: 0.00 | AE104: 0 | AG104: 0.00
A105: 95 | U105: 0.00 | AA105: 0.00 | AE105: 0 | AG105: 0.00
A106: 96 | U106: 0.00 | AA106: 0.00 | AE106: 0 | AG106: 0.00
A107: 97 | U107: 0.00 | AA107: 0.00 | AE107: 0 | AG107: 0.00
A108: 98 | U108: 0.00 | AA108: 0.00 | AE108: 0 | AG108: 0.00
A109: 99 | U109: 0.00 | AA109: 0.00 | AE109: 0 | AG109: 0.00
A110: 100 | U110: 0.00 | AA110: 0.00 | AE110: 0 | AG110: 0.00
A111: Total: | AG111: =SUM(AG11:AJ110) -> 5,633,797.50
A134: ="All amounts in "&'Summary Sheet'!$E$15&"." -> All amounts in USD.

Sheet C-Variation
A1: Project | E1: ='Summary Sheet'!E1 -> [Project Name] | S1: ='Summary Sheet'!S1:AJ2 -> Progress Payment Application (PPA) | AP1: Updates Automatically from Summary Sheet
A2: Phase | E2: ='Summary Sheet'!E2 -> [Project Phase]
A3: Client | E3: ='Summary Sheet'!E3 -> [Client] | S3: Proj. Mngr. | W3: ='Summary Sheet'!W3 -> [Project Mngr.] | AB3: Month | AF3: ='Summary Sheet'!AF3 -> 2016-01-01
A4: Client's Repres. | E4: ='Summary Sheet'!E4 -> [Client's Representative] | AB4: PPC No. | AF4: ='Summary Sheet'!AF4 -> 8
A5: Contractor | E5: ='Summary Sheet'!E5 -> [Contractor] | S5: Ref. No. | W5: ='Summary Sheet'!W5 -> XYZ-123-PPC-009-00 - December
A6: Sub-Contractor | E6: ='Summary Sheet'!E6 -> [Sub-Contractor]
A7: C) Variation(s) Summary
A9: Item | C9: Description | S9: Current Month | Y9: Previous Month | AE9: Total Var. Work Done
K10: QTY | N10: UOM | P10: Rate | S10: QTY | U10: Amount | Y10: QTY | AA10: Amount | AE10: QTY | AG10: Amount
A11: 01 | C11: XYZ | K11: 365 | N11: lm | P11: 123.00 | S11: 17 | U11: =S11*P11 -> 2,091.00 | Y11: 12 | AA11: =Y11*P11 -> 1,476.00 | AE11: =S11+Y11 -> 29 | AG11: =AE11*P11 -> 3,567.00 | AP11: Update this part
A12: 02
A13: 03
A14: 04
A15: 05
A16: 06
A17: 07
A18: 08
A19: 09
A20: 10
A21: 11
A22: 12
A23: 13
A24: 14
A25: 15
A26: Total: | AG26: =SUM(AG11:AJ25) -> 3,567.00
A49: ="All amounts in "&'Summary Sheet'!$E$15&"." -> All amounts in USD.

Sheet D1-Advance Payment
A1: Project | E1: ='Summary Sheet'!E1 -> [Project Name] | S1: ='Summary Sheet'!S1:AJ2 -> Progress Payment Application (PPA) | AP1: Updates Automatically from Summary Sheet
A2: Phase | E2: ='Summary Sheet'!E2 -> [Project Phase]
A3: Client | E3: ='Summary Sheet'!E3 -> [Client] | S3: Proj. Mngr. | W3: ='Summary Sheet'!W3 -> [Project Mngr.] | AB3: Month | AF3: ='Summary Sheet'!AF3 -> 2016-01-01
A4: Client's Repres. | E4: ='Summary Sheet'!E4 -> [Client's Representative] | AB4: PPC No. | AF4: ='Summary Sheet'!AF4 -> 8
A5: Contractor | E5: ='Summary Sheet'!E5 -> [Contractor] | S5: Ref. No. | W5: ='Summary Sheet'!W5 -> XYZ-123-PPC-009-00 - December
A6: Sub-Contractor | E6: ='Summary Sheet'!E6 -> [Sub-Contractor]
A7: D.1) Advance Payment Amortization
A9: Advance Amount | V9: Amortiz. Period | Y9: Progress Payment Claim | AC9: Adv. Payment Amortization | AP9: Nothing to fill here, everything updates automatically
AC10: Rate | AG10: Amount
Q11: ='Summary Sheet'!W12 -> 750,000.00 | V11: ='Summary Sheet'!AB13 -> 6 | Y11: 1 | AC11: =Y11/$V$11 -> 16.67% | AG11: =IF(Y11="","",IF(Y11<=$AF$4,$Q$11*AC11,"")*-1) -> -125,000.00
Y12: 2 | AC12: =IF(ISERROR((Y12/$V$11)-(Y11*AC11)),"",(Y12/$V$11)-(Y11*AC11)) -> 16.67% | AG12: -125,000.00
Y13: =IF(ISERROR(IF(Y12=$V$11,"",Y12+1)),"",IF(Y12=$AF$4,"",Y12+1)) -> 3 | AC13: 16.67% | AG13: -125,000.00
Y14: 4 | AC14: 16.67% | AG14: -125,000.00
Y15: 5 | AC15: 16.67% | AG15: =IF(Y15="","",IF(Y15<=$AF$4,$Q$11*AC15,"")*-1) -> -125,000.00
Y16: 6 | AC16: 16.67% | AG16: =IF(Y16="","",IF(Y16<=$AF$4,$Q$11*AC16,"")*-1) -> -125,000.00
A26: Total | AG26: =SUM(AG11:AJ25) -> -750,000.00
A49: ="All amounts in "&'Summary Sheet'!$E$15&"." -> All amounts in USD.

Sheet D4-Previous Cert.
A1: Project | E1: ='Summary Sheet'!E1 -> [Project Name] | S1: ='Summary Sheet'!S1:AJ2 -> Progress Payment Application (PPA) | AP1: Updates Automatically from Summary Sheet
A2: Phase | E2: ='Summary Sheet'!E2 -> [Project Phase]
A3: Client | E3: ='Summary Sheet'!E3 -> [Client] | S3: Proj. Mngr. | W3: ='Summary Sheet'!W3 -> [Project Mngr.] | AB3: Month | AF3: ='Summary Sheet'!AF3 -> 2016-01-01
A4: Client's Repres. | E4: ='Summary Sheet'!E4 -> [Client's Representative] | AB4: PPC No. | AF4: ='Summary Sheet'!AF4 -> 8
A5: Contractor | E5: ='Summary Sheet'!E5 -> [Contractor] | S5: Ref. No. | W5: ='Summary Sheet'!W5 -> XYZ-123-PPC-009-00 - December
A6: Sub-Contractor | E6: ='Summary Sheet'!E6 -> [Sub-Contractor]
A7: D.4) Previous Certified Amount
A9: Item | C9: Progress Payment Claim | AE9: Previous Certified Amount
A10: 1 | C10: XYZ-123-PPC-001-00 - May | AE10: 100,000.00 | AP10: Update this part
A11: 2 | C11: XYZ-123-PPC-002-00 - June | AE11: 210,000.00
A12: 3 | C12: XYZ-123-PPC-003-00 July | AE12: 280,000.00
A13: 4 | C13: XYZ-123-PPC-004-00 August | AE13: 590,000.00
A14: 5 | C14: XYZ-123-PPC-005-01 September | AE14: 890,000.00
A15: 6 | C15: XYZ-123-PPC-006-02 October | AE15: 1,210,000.00
A16: 7 | C16: XYZ-123-PPC-007-00 November | AE16: 1,530,000.00
A17: 8
A18: 9
A19: 10
A20: 11
A21: 12
A22: 13
A23: 14
A24: 15
A47: ="All amounts in "&'Summary Sheet'!$E$15&"." -> All amounts in USD.

Sheet D5-Backcharges
A1: Project | E1: ='Summary Sheet'!E1 -> [Project Name] | S1: ='Summary Sheet'!S1:AJ2 -> Progress Payment Application (PPA) | AP1: Updates Automatically from Summary Sheet
A2: Phase | E2: ='Summary Sheet'!E2 -> [Project Phase]
A3: Client | E3: ='Summary Sheet'!E3 -> [Client] | S3: Proj. Mngr. | W3: ='Summary Sheet'!W3 -> [Project Mngr.] | AB3: Month | AF3: ='Summary Sheet'!AF3 -> 2016-01-01
A4: Client's Repres. | E4: ='Summary Sheet'!E4 -> [Client's Representative] | AB4: PPC No. | AF4: ='Summary Sheet'!AF4 -> 8
A5: Contractor | E5: ='Summary Sheet'!E5 -> [Contractor] | S5: Ref. No. | W5: ='Summary Sheet'!W5 -> XYZ-123-PPC-009-00 - December
A6: Sub-Contractor | E6: ='Summary Sheet'!E6 -> [Sub-Contractor]
A7: D.5) Backcharges
A9: Item | C9: Progress Payment Claim | AE9: Backcharges
A10: 1 | C10: Ref.-No. XYZ123 - Material Supply by Client | AE10: -27,500.00 | AP10: Fill Only this part
A11: 2 | C11: Ref.-No. XYZ456 - Service provided by Client | AE11: -10,000.00
A12: 3
A13: 4
A14: 5
A15: 6
A16: 7
A17: 8
A18: 9
A19: 10
A20: 11
A21: 12
A22: 13
A23: 14
A24: 15
A25: Total: | AE25: =SUM(AE10:AJ24) -> -37,500.00
A47: ="All amounts in "&'Summary Sheet'!$E$15&"." -> All amounts in USD.

Sheet D6-Material at Site
A1: Project | E1: ='Summary Sheet'!E1 -> [Project Name] | S1: ='Summary Sheet'!S1:AJ2 -> Progress Payment Application (PPA) | AP1: Updates Automatically from Summary Sheet
A2: Phase | E2: ='Summary Sheet'!E2 -> [Project Phase]
A3: Client | E3: ='Summary Sheet'!E3 -> [Client] | S3: Proj. Mngr. | W3: ='Summary Sheet'!W3 -> [Project Mngr.] | AB3: Month | AF3: ='Summary Sheet'!AF3 -> 2016-01-01
A4: Client's Repres. | E4: ='Summary Sheet'!E4 -> [Client's Representative] | AB4: PPC No. | AF4: ='Summary Sheet'!AF4 -> 8
A5: Contractor | E5: ='Summary Sheet'!E5 -> [Contractor] | S5: Ref. No. | W5: ='Summary Sheet'!W5 -> XYZ-123-PPC-009-00 - December
A6: Sub-Contractor | E6: ='Summary Sheet'!E6 -> [Sub-Contractor]
A7: D.6) Material at Site
A9: Item | C9: Progress Payment Claim | AE9: Value
A10: 1 | C10: ABC Material delivered at Site | AE10: 227,500.00 | AP10: Update this part
A11: 2
A12: 3
A13: 4
A14: 5
A15: 6
A16: 7
A17: 8
A18: 9
A19: 10
A20: 11
A21: 12
A22: 13
A23: 14
A24: 15
A25: Total: | AE25: =SUM(AE10:AJ24) -> 227,500.00
A47: ="All amounts in "&'Summary Sheet'!$E$15&"." -> All amounts in USD.
